bitfinex-derivatives/quotes_BTCF0:USTF0_20250805
["timestamp","ask_amount","ask_price","bid_price","bid_amount"]
[1754354535364,1.38788186,115040.0,115030.0,0.33031317]
[1754354536258,1.38888186,115040.0,115030.0,0.33031317]
[1754354536460,1.38888186,115040.0,115030.0,0.24339307]
[1754354536963,1.88888186,115040.0,115030.0,0.06952567]
[1754354537158,1.88888186,115040.0,115020.0,0.2608108]
[1754354537159,0.1738662,115030.0,115020.0,0.2608108]
[1754354537363,1.73207556,115030.0,115020.0,0.2608108]
[1754354537955,1.73207556,115030.0,115020.0,0.17387]
[1754354538467,1.73207556,115030.0,115020.0,0.17487]
[1754354538861,1.98297556,115030.0,115020.0,0.001]
[1754354539062,1.98297556,115030.0,115020.0,0.1748819]
[1754354539268,2.48297556,115030.0,115020.0,0.1748819]
[1754354539759,2.48297556,115030.0,115020.0,0.1738819]
[1754354540761,2.48297556,115030.0,115020.0,0.24469673]
[1754354540966,1.2298,115030.0,115020.0,0.24469673]
[1754354541269,2.48297606,115030.0,115020.0,0.33425673]
[1754354541461,2.48297606,115030.0,115020.0,0.24469673]
[1754354543066,2.96820542,115030.0,115020.0,0.07081483]
[1754354543261,2.96820542,115030.0,115010.0,0.260835]
[1754354543262,0.1738818,115020.0,115010.0,0.2173615]
[1754354543462,1.44935872,115020.0,115000.0,0.1304337]
[1754354543664,1.73230626,115010.0,115000.0,0.3043319]
[1754354543964,1.13802626,115010.0,115000.0,0.2173761]
[1754354544164,0.96412936,115010.0,115000.0,0.2756061]
[1754354544365,0.96412936,115010.0,115000.0,0.2977261]
[1754354544564,0.96412936,115010.0,115000.0,0.3069361]
[1754354544765,0.96412936,115010.0,115000.0,0.37711368]
[1754354544766,1.13802626,115010.0,115000.0,0.37711368]
[1754354545669,1.38792626,115010.0,115000.0,0.37711368]
[1754354546470,1.38792626,115010.0,115000.0,0.36764368]
[1754354546672,1.38792626,115010.0,115000.0,0.30355368]
[1754354546868,1.38792626,115010.0,115000.0,0.28755368]
[1754354547970,1.38792626,115010.0,115000.0,0.37711368]
[1754354548164,1.98208626,115010.0,115000.0,0.40000368]
[1754354548370,1.98208626,115010.0,115000.0,0.28755368]
[1754354549273,1.98208626,115010.0,115000.0,0.24408998]
[1754354550573,1.98208626,115010.0,115000.0,0.31496998]
[1754354550876,1.98208626,115010.0,115000.0,0.33364998]
[1754354552190,1.98208626,115010.0,115000.0,0.35852998]
[1754354552376,1.98208626,115010.0,115000.0,0.33364998]
[1754354553085,1.98216626,115010.0,115000.0,0.33364998]
[1754354553586,1.98216626,115010.0,115000.0,0.26008998]
[1754354554087,1.98216626,115010.0,115000.0,0.24408998]
[1754354554491,1.98216626,115010.0,115000.0,0.32667998]
[1754354554689,1.98216626,115010.0,115000.0,0.33614998]
[1754354556086,1.98216626,115010.0,115000.0,0.32667998]
[1754354556589,1.98216626,115010.0,115000.0,0.24408998]
[1754354557890,1.98228646,115010.0,115000.0,0.33614998]
[1754354558183,1.98228646,115010.0,115000.0,0.32667998]
[1754354558490,1.98228646,115010.0,115000.0,0.26025998]
[1754354559587,1.98228646,115010.0,115000.0,0.29401998]
[1754354561288,0.7288,115010.0,115000.0,0.26025998]
[1754354561586,0.2499,115010.0,115000.0,1.02016334]
[1754354561792,0.2499,115010.0,115000.0,1.62240334]
[1754354561991,0.129169,115010.0,115000.0,1.98320334]
[1754354562193,0.0154879,115010.0,115000.0,1.98320334]
[1754354562893,0.1118979,115010.0,115000.0,1.98320334]
[1754354563092,0.0397379,115010.0,115000.0,1.98320334]
[1754354565085,0.09513,115020.0,115010.0,0.2908374]
[1754354565291,0.04785,115020.0,115010.0,0.77606676]
[1754354565495,0.0327,115020.0,115010.0,0.77606676]
[1754354566998,0.00973,115020.0,115010.0,0.77606676]
[1754354567197,0.01073,115020.0,115010.0,0.77606676]
[1754354568594,0.001,115020.0,115010.0,0.77606676]
[1754354569195,0.0337,115020.0,115010.0,0.77606676]
[1754354569397,0.12038,115020.0,115010.0,0.77606676]
[1754354569594,0.12038,115020.0,115010.0,0.2908374]
[1754354569900,0.60560936,115020.0,115010.0,0.2908374]
[1754354570104,0.96640936,115020.0,115010.0,0.2908374]
[1754354570292,0.48118,115020.0,115010.0,0.2908374]
[1754354570493,0.96640936,115020.0,115010.0,0.2908374]
[1754354570798,0.89487936,115020.0,115010.0,0.2908374]
[1754354570999,0.96640936,115020.0,115010.0,0.2908374]
[1754354571201,0.96640936,115020.0,115010.0,0.5556374]
[1754354571202,0.48118,115020.0,115010.0,0.5556374]
[1754354571897,0.48118,115020.0,115010.0,0.5461674]
[1754354572101,1.62552142,115020.0,115010.0,0.4386974]
[1754354572398,1.08214,115020.0,115010.0,0.5556374]
[1754354572602,0.72134,115020.0,115010.0,1.04086676]
[1754354572794,0.12038,115020.0,115010.0,1.04086676]
[1754354573304,0.73108,115020.0,115010.0,0.5556374]
[1754354574002,1.21630936,115020.0,115010.0,0.5461674]
[1754354574199,1.21630936,115020.0,115010.0,0.5556374]
[1754354577202,1.21630936,115020.0,115010.0,0.2908374]
[1754354577897,1.21630936,115020.0,115010.0,0.1738974]
[1754354578106,0.73108,115020.0,115010.0,0.1738974]
[1754354578302,1.21630936,115020.0,115010.0,0.1738974]
[1754354578604,1.21630936,115020.0,115010.0,0.1900674]
[1754354578802,1.21630936,115020.0,115010.0,0.2908374]
[1754354580499,1.39019166,115020.0,115010.0,0.1738974]
[1754354581501,1.87542102,115020.0,115010.0,0.1738974]
[1754354582597,2.37542102,115020.0,115010.0,0.1738974]
[1754354583796,1.89019166,115020.0,115010.0,0.1738974]
[1754354587206,2.37542102,115020.0,115010.0,0.1738974]
[1754354590207,1.89019166,115020.0,115010.0,0.1738974]
[1754354593508,2.37542102,115020.0,115010.0,0.1388974]
[1754354594408,0.1738975,115010.0,115000.0,0.45264201]
[1754354594615,1.73687686,115010.0,115000.0,0.45264201]
[1754354595408,1.73687686,115010.0,115000.0,0.40916481]
[1754354596815,1.73687686,115010.0,115000.0,0.36668911]
[1754354597618,1.74557073,115010.0,115000.0,0.36668911]
[1754354597807,1.74557073,115010.0,115000.0,0.32321421]
[1754354598114,1.74557073,115010.0,115000.0,0.24507738]
[1754354599208,2.24557073,115010.0,115000.0,0.24507738]
[1754354599608,2.24557073,115010.0,115000.0,0.07117758]
[1754354600008,2.49547073,115010.0,115000.0,0.07117758]
[1754354600208,2.49547073,115010.0,115000.0,0.24509048]
[1754354602813,2.48677686,115010.0,115000.0,0.24509048]
[1754354603010,2.48677686,115010.0,115000.0,0.07117758]
[1754354604119,2.48677686,115010.0,115000.0,0.24509038]
[1754354605217,2.48677686,115010.0,115000.0,0.24509028]
[1754354608017,2.48677686,115010.0,115000.0,0.29220028]
[1754354608315,2.48677686,115010.0,115000.0,0.31602028]
[1754354608912,2.48677686,115010.0,115000.0,0.29220028]
[1754354609710,2.48677686,115010.0,115000.0,0.26039028]
[1754354610915,2.48777686,115010.0,115000.0,0.25939028]
[1754354611216,2.48777686,115010.0,115000.0,0.24409028]
[1754354613915,2.23787686,115010.0,115000.0,0.07017758]
[1754354614214,0.2206228,115000.0,114990.0,0.3043582]
[1754354614417,1.13884216,115000.0,114990.0,0.3043582]
[1754354615119,1.13884216,115000.0,114990.0,0.37519276]
[1754354616113,1.13884216,115000.0,114990.0,0.41495276]
[1754354616312,1.13884216,115000.0,114990.0,0.47150276]
[1754354618017,1.13884216,115000.0,114990.0,0.41495276]
[1754354618322,1.13884216,115000.0,114990.0,0.28923056]
[1754354618521,1.13884216,115000.0,114990.0,0.36736739]
[1754354618722,1.13884216,115000.0,114990.0,0.28923056]
[1754354619325,1.13884216,115000.0,114990.0,0.36736739]
[1754354620225,1.63884216,115000.0,114990.0,0.36736739]
[1754354620523,1.63884216,115000.0,114990.0,0.28923056]
[1754354620721,1.63884216,115000.0,114990.0,0.36736739]
[1754354620919,1.88874216,115000.0,114990.0,0.36736739]
[1754354621423,1.88874216,115000.0,114990.0,0.32388629]
[1754354623122,1.88874216,115000.0,114990.0,0.24574946]
[1754354625728,1.88874216,115000.0,114990.0,0.07183456]
[1754354627429,1.88874216,115000.0,114990.0,0.24576256]
[1754354630127,1.88874216,115000.0,114990.0,0.27837256]
[1754354630328,1.88874216,115000.0,114990.0,0.34107256]
[1754354631732,1.88974216,115000.0,114990.0,0.34007256]
[1754354633831,1.88974216,115000.0,114990.0,0.35911256]
[1754354637738,1.88974216,115000.0,114990.0,0.34964256]
[1754354640041,1.88974216,115000.0,114990.0,0.35911256]
[1754354641034,1.88974216,115000.0,114990.0,0.34964256]
[1754354641641,2.0010328,115000.0,114990.0,0.35832256]
[1754354641942,2.48626216,115000.0,114990.0,0.35832256]
[1754354642142,2.48626216,115000.0,114990.0,0.34885256]
[1754354642638,2.97149152,115000.0,114990.0,0.24476226]
[1754354642845,2.48626216,115000.0,114990.0,0.24476226]
[1754354644746,2.48626216,115000.0,114990.0,0.28172226]
[1754354644947,2.48626216,115000.0,114990.0,0.33951226]
[1754354645247,1.88974216,115000.0,114990.0,0.35832226]
[1754354645447,2.48626216,115000.0,114990.0,0.35832226]
[1754354646246,1.4045129,115000.0,114990.0,0.35832226]
[1754354646547,1.82704,115000.0,114990.0,0.35832226]
[1754354646748,2.0009529,115000.0,114990.0,0.35832226]
[1754354646948,2.48618226,115000.0,114990.0,0.35832226]
[1754354647344,1.98618226,115000.0,114990.0,0.35832226]
[1754354647855,1.38974226,115000.0,114990.0,0.35832226]
[1754354648150,1.98606226,115000.0,114990.0,0.35832226]
[1754354651057,1.98598226,115000.0,114990.0,0.35832226]
[1754354651758,1.98598226,115000.0,114990.0,0.43645909]
[1754354651957,1.21582936,115000.0,114990.0,0.43645909]
[1754354652158,0.70642,115000.0,114990.0,0.92168845]
[1754354652358,0.7314,115000.0,114990.0,0.92168845]
[1754354653058,0.7314,115000.0,114990.0,0.43645909]
[1754354653357,0.7314,115000.0,114990.0,0.35832226]
[1754354653559,1.39054206,115000.0,114990.0,0.24476226]
[1754354653746,1.39054206,115000.0,114990.0,0.31782226]
[1754354653952,1.39054206,115000.0,114990.0,0.24476226]
[1754354655158,1.39054206,115000.0,114990.0,0.32299949]
[1754354655361,1.39054206,115000.0,114990.0,0.39605949]
[1754354655660,1.39054206,115000.0,114990.0,0.35995949]
[1754354655859,1.39054206,115000.0,114990.0,0.33826949]
[1754354657261,1.39054206,115000.0,114990.0,0.39605949]
[1754354658062,1.39054206,115000.0,114990.0,0.41774949]
[1754354658459,1.39054206,115000.0,114990.0,0.42721949]
[1754354658660,1.39054206,115000.0,114990.0,0.43655949]
[1754354661166,1.98606206,115000.0,114990.0,0.43655949]
[1754354661960,1.98606206,115000.0,114990.0,0.46788719]
[1754354663060,1.98586206,115000.0,114990.0,0.46788719]
[1754354664667,1.98586206,115000.0,114990.0,0.45841719]
[1754354665166,1.98586206,115000.0,114990.0,0.44907719]
[1754354666668,2.47173378,115000.0,114990.0,0.44907719]
[1754354667566,2.47173378,115000.0,114990.0,0.33951226]
[1754354667769,2.47173378,115000.0,114990.0,0.4177324]
[1754354668361,1.87641378,115000.0,114990.0,0.4177324]
[1754354668567,2.47157378,115000.0,114990.0,0.4177324]
[1754354670369,2.47157378,115000.0,114990.0,0.52729733]
[1754354670558,2.47157378,115000.0,114990.0,0.42538719]
[1754354670964,2.47157378,115000.0,114990.0,0.31582226]
[1754354671267,2.47157378,115000.0,114990.0,0.28172226]
[1754354672666,2.83209378,115000.0,114990.0,0.31667226]
[1754354673469,2.23721378,115000.0,114990.0,0.31667226]
[1754354673664,2.83209378,115000.0,114990.0,0.31667226]
[1754354673969,2.83209378,115000.0,114990.0,0.34030226]
[1754354675671,2.17263054,115000.0,114990.0,0.8258528]
[1754354675870,2.17263054,115000.0,114990.0,0.8446628]
[1754354677272,2.17263054,115000.0,114990.0,0.35911226]
[1754354680271,2.83209368,115000.0,114990.0,0.26003226]
[1754354680477,2.83209368,115000.0,114990.0,0.24476226]
[1754354681772,2.83209368,115000.0,114990.0,0.32300089]
[1754354681978,2.65818108,115000.0,114990.0,0.24476226]
[1754354682178,2.65818108,115000.0,114990.0,0.28341226]
[1754354682478,2.65818108,115000.0,114990.0,0.34199226]
[1754354682674,2.65818108,115000.0,114990.0,0.45155719]
[1754354683877,1.68708,115000.0,114990.0,0.95579773]
[1754354684078,2.17263054,115000.0,114990.0,0.95579773]
[1754354685283,2.34654314,115000.0,114990.0,0.39297719]
[1754354685486,2.34654314,115000.0,114990.0,0.87852773]
[1754354685684,2.34654314,115000.0,114990.0,0.85629773]
[1754354685984,1.57775054,115000.0,114990.0,0.85629773]
[1754354686476,1.57775054,115000.0,114990.0,0.94632773]
[1754354686676,1.57775054,115000.0,114990.0,0.95579773]
[1754354687775,1.57775054,115000.0,114990.0,0.87852773]
[1754354687982,1.75166364,115000.0,114990.0,0.87852773]
[1754354688285,2.23721418,115000.0,114990.0,0.85629773]
[1754354689383,2.06330108,115000.0,114990.0,0.85629773]
[1754354689586,2.23721418,115000.0,114990.0,0.35432719]
[1754354691381,2.06330108,115000.0,114990.0,0.35432719]
[1754354691583,2.17259054,115000.0,114990.0,0.95579773]
[1754354691779,1.57775054,115000.0,114990.0,1.03411106]
[1754354691979,1.57775054,115000.0,114990.0,0.92454613]
[1754354693883,1.57775054,115000.0,114990.0,0.87090613]
[1754354694187,2.23721408,115000.0,114990.0,0.36172559]
[1754354694378,2.23721408,115000.0,114990.0,0.32307559]
[1754354696378,2.23721408,115000.0,114990.0,0.24476226]
[1754354696581,2.72276462,115000.0,114990.0,0.24476226]
[1754354696782,2.72276462,115000.0,114990.0,0.10901226]
[1754354696983,2.72276462,115000.0,114990.0,0.09401226]
[1754354697180,3.22276462,115000.0,114990.0,0.09401226]
[1754354698694,2.25181692,115000.0,114990.0,0.09401226]
[1754354699097,2.25181692,115000.0,114990.0,0.16397662]
[1754354700089,2.84665692,115000.0,114990.0,0.16397662]
[1754354701891,2.84665692,115000.0,114990.0,0.06996436]
[1754354702092,0.1972488,114990.0,114980.0,0.173931]
[1754354702289,0.1972488,114990.0,114970.0,0.2847941]
[1754354702290,0.1972639,114980.0,114970.0,0.2847941]
[1754354702490,1.04376782,114980.0,114970.0,0.3334241]
[1754354702993,0.5580639,114980.0,114970.0,0.3550541]
[1754354703198,0.86982392,114980.0,114970.0,0.45663252]
[1754354703496,0.3751,114980.0,114970.0,0.45663252]
[1754354703696,0.3608,114980.0,114970.0,0.86409802]
[1754354703992,0.3608,114980.0,114970.0,0.93441121]
[1754354704192,0.3608,114980.0,114970.0,1.04397614]
[1754354704397,0.3608,114980.0,114970.0,1.0537755]
[1754354704786,0.6107,114980.0,114970.0,1.0537755]
[1754354705198,0.6107,114980.0,114970.0,1.2277275]
[1754354705693,0.3608,115000.0,114990.0,0.1739272]
[1754354705992,0.3608,115000.0,114990.0,0.77710112]
[1754354706293,0.3608,115000.0,114990.0,1.48154605]
[1754354707194,0.3608,115000.0,114990.0,2.23204997]
[1754354707493,0.3608,115010.0,115000.0,0.4218103]
[1754354707494,0.45289,115010.0,115000.0,0.4218103]
[1754354707687,0.96131392,115010.0,115000.0,0.53137523]
[1754354708892,0.47561,115010.0,115000.0,0.53137523]
[1754354709093,0.47561,115010.0,115000.0,0.53637523]
[1754354709495,0.3608,115010.0,115000.0,0.53637523]
[1754354709694,1.48828392,115020.0,115010.0,0.2214677]
[1754354709894,1.51100392,115020.0,115010.0,0.36952311]
[1754354710091,1.13519652,115020.0,115010.0,0.36952311]
[1754354710297,1.63519652,115020.0,115010.0,0.36952311]
[1754354710602,1.63519652,115020.0,115010.0,0.35594311]
[1754354710902,1.63519652,115020.0,115010.0,0.33431311]
[1754354711304,1.63519652,115020.0,115010.0,0.33931311]
[1754354711802,1.63519652,115020.0,115010.0,0.30686311]
[1754354712598,1.63519652,115020.0,115010.0,0.30986311]
[1754354712797,1.63519652,115020.0,115010.0,0.34231311]
[1754354713098,2.22999652,115020.0,115010.0,0.34231311]
[1754354713403,2.22999652,115020.0,115010.0,0.35589311]
[1754354714004,2.22999652,115020.0,115010.0,0.37752311]
[1754354715210,1.6294826,115020.0,115010.0,0.30010311]
[1754354715508,1.59004652,115020.0,115010.0,0.37752311]
[1754354715907,1.59004652,115020.0,115010.0,0.1818977]
[1754354716110,1.59004652,115020.0,115010.0,0.2057677]
[1754354716608,1.59004652,115020.0,115010.0,0.2219477]
[1754354718011,1.59004652,115020.0,115010.0,0.2543977]
[1754354719710,1.59004652,115020.0,115010.0,0.2219477]
[1754354720110,2.07575044,115020.0,115010.0,0.1818977]
[1754354722808,2.07575044,115020.0,115010.0,0.1468977]
[1754354723014,0.2829876,115010.0,115000.0,0.5691273]
[1754354723215,1.72421152,115010.0,115000.0,0.5691273]
[1754354724014,2.47411152,115010.0,115000.0,0.5691273]
[1754354724214,2.47411152,115010.0,115000.0,0.5256503]
[1754354724414,2.47411152,115010.0,115000.0,0.5276503]
[1754354724916,1.9884076,115010.0,115000.0,0.5276503]
[1754354725113,2.30021392,115010.0,115000.0,0.3342903]
[1754354725315,2.30021392,115010.0,115000.0,0.3803203]
[1754354725520,1.9884076,115010.0,115000.0,0.3803203]
[1754354725723,2.47411152,115010.0,115000.0,0.3803203]
[1754354726616,2.47411152,115010.0,115000.0,0.2628503]
[1754354726816,2.22421152,115010.0,115000.0,0.2628503]
[1754354727212,2.47411152,115010.0,115000.0,0.2193747]
[1754354729318,2.47411152,115010.0,115000.0,0.002]
[1754354729722,0.2190628,115000.0,114990.0,0.2173987]
[1754354729917,1.12750672,115000.0,114990.0,0.2173987]
[1754354731118,1.62750672,115000.0,114990.0,0.2173987]
[1754354731313,0.1739278,114990.0,114980.0,0.33905781]
[1754354731618,2.20798564,114990.0,114980.0,0.2609024]
[1754354731806,1.72228172,114990.0,114980.0,0.2843424]
[1754354732007,1.72228172,114990.0,114980.0,0.3007024]
[1754354732215,1.97218172,114990.0,114980.0,0.3007024]
[1754354732416,1.97318172,114990.0,114980.0,0.3007024]
[1754354732617,1.97318172,114990.0,114980.0,0.2609024]
[1754354732816,2.45888564,114990.0,114980.0,0.2609024]
[1754354733013,2.95888564,114990.0,114980.0,0.2609024]
[1754354733521,2.95888564,114990.0,114980.0,0.2843424]
[1754354733712,2.47818172,114990.0,114980.0,0.2843424]
[1754354734918,2.46318172,114990.0,114980.0,0.2843424]
[1754354735118,1.80355,114990.0,114980.0,0.3797624]
[1754354735717,1.19449,114990.0,114980.0,0.3797624]
[1754354735914,1.1167,114990.0,114980.0,0.86546632]
[1754354736320,1.3373279,114990.0,114980.0,0.3797624]
[1754354736713,1.1634,114990.0,114980.0,0.3797624]
[1754354737112,1.3373277,114990.0,114980.0,0.3797624]
[1754354737422,1.1634,114990.0,114980.0,0.3797624]
[1754354737718,1.1634,114990.0,114980.0,0.9746424]
[1754354738124,1.3373277,114990.0,114980.0,0.9746424]
[1754354738923,1.82303162,114990.0,114980.0,0.9746424]
[1754354739727,1.3373277,114990.0,114980.0,0.9746424]
[1754354739925,1.3373277,114990.0,114980.0,0.3797624]
[1754354740126,1.3373277,114990.0,114980.0,0.9745624]
[1754354740324,1.3373277,114990.0,114980.0,0.9598924]
[1754354740523,1.82303162,114990.0,114980.0,0.2843424]
[1754354740827,1.83803162,114990.0,114980.0,0.2843424]
[1754354741022,1.83803162,114990.0,114980.0,0.3007024]
[1754354741223,1.83803162,114990.0,114980.0,0.3235724]
[1754354741425,1.83803162,114990.0,114980.0,0.3650924]
[1754354743128,1.83803162,114990.0,114980.0,0.2609024]
[1754354743324,1.83803162,114990.0,114980.0,0.2843424]
[1754354743527,1.83803162,114990.0,114980.0,0.2609024]
[1754354744028,2.32373554,114990.0,114980.0,0.2174171]
[1754354744226,1.83803162,114990.0,114980.0,0.2408571]
[1754354747727,2.19883162,114990.0,114980.0,0.2408571]
[1754354750436,2.19883162,114990.0,114980.0,0.2174171]
[1754354751334,2.19883162,114990.0,114980.0,0.2408571]
[1754354753535,2.19883162,114990.0,114980.0,0.31901251]
[1754354754641,2.19883162,114990.0,114980.0,0.29557251]
[1754354756439,2.68453554,114990.0,114980.0,0.29557251]
[1754354756944,2.68453554,114990.0,114980.0,0.2174171]
[1754354757143,2.68453554,114990.0,114980.0,0.1739318]
[1754354758847,0.2227229,114980.0,114970.0,0.4763213]
[1754354759046,1.72580682,114980.0,114970.0,0.4763213]
[1754354759848,1.72580682,114980.0,114970.0,0.4926813]
[1754354760045,1.72680682,114980.0,114970.0,0.4926813]
[1754354760449,1.72680682,114980.0,114970.0,0.5570713]
[1754354760644,1.72880682,114980.0,114970.0,0.5246813]
[1754354760846,1.72880682,114980.0,114970.0,0.5155513]
[1754354761048,1.72880682,114980.0,114970.0,0.4491921]
[1754354761851,1.72880682,114980.0,114970.0,0.4328321]
[1754354762451,1.72880682,114980.0,114970.0,0.35467669]
[1754354762452,1.97870682,114980.0,114970.0,0.35467669]
[1754354768748,1.97870682,114980.0,114970.0,0.07031319]
[1754354768952,1.97870682,114980.0,114970.0,0.25211351]
[1754354769147,1.4930029,114980.0,114970.0,0.1739581]
[1754354769351,1.97870682,114980.0,114970.0,0.1979281]
[1754354769554,2.47870682,114980.0,114970.0,0.2132781]
[1754354770250,2.47770682,114980.0,114970.0,0.2132781]
[1754354771160,2.83850682,114980.0,114970.0,0.2132781]
[1754354771561,2.83750682,114980.0,114970.0,0.2132781]
[1754354772359,2.83750682,114980.0,114970.0,0.1979281]
[1754354773761,2.83750682,114980.0,114970.0,0.26756852]
[1754354774763,3.32344094,114980.0,114970.0,0.26756852]
[1754354775358,3.80925996,114980.0,114970.0,0.24359852]
[1754354775561,3.32344094,114980.0,114970.0,0.24359852]
[1754354775961,3.32344094,114980.0,114970.0,0.26756852]
[1754354778367,3.32344094,114980.0,114970.0,0.28291852]
[1754354780564,3.32344094,114980.0,114970.0,0.26756852]
[1754354783167,3.32344094,114980.0,114970.0,0.28291852]
[1754354791473,3.32344094,114980.0,114970.0,0.31424852]
[1754354791667,3.32344094,114980.0,114970.0,0.34730852]
[1754354793875,3.32344094,114980.0,114970.0,0.31424852]
[1754354796776,3.32344094,114980.0,114970.0,0.30441852]
[1754354797279,3.32344094,114980.0,114970.0,0.28323852]
[1754354802181,3.32344094,114980.0,114970.0,0.36139393]
[1754354802380,3.32344094,114980.0,114970.0,0.28323852]
[1754354802982,3.32344094,114980.0,114970.0,0.36139393]
[1754354803376,2.3518029,114980.0,114970.0,0.36139393]
[1754354803576,2.05379902,114980.0,114970.0,0.92589295]
[1754354804282,2.53961804,114980.0,114970.0,0.92589295]
[1754354804481,2.53961804,114980.0,114970.0,0.44007393]
[1754354805089,2.72856044,114980.0,114970.0,0.44007393]
[1754354805588,3.32352044,114980.0,114970.0,0.44007393]
[1754354805879,3.32352044,114980.0,114970.0,0.36191852]
[1754354806690,3.32352044,114980.0,114970.0,0.26673852]
[1754354806691,3.32348044,114980.0,114970.0,0.26673852]
[1754354807078,3.32348044,114980.0,114970.0,0.28323852]
[1754354807483,3.32348044,114980.0,114970.0,0.33743852]
[1754354807790,3.32348044,114980.0,114970.0,0.34726852]
[1754354807991,3.32348044,114980.0,114970.0,0.36191852]
[1754354808393,3.14953804,114980.0,114970.0,0.36191852]
[1754354808589,3.13453804,114980.0,114970.0,0.36191852]
[1754354808789,3.30848044,114980.0,114970.0,0.36191852]
[1754354809092,3.32348044,114980.0,114970.0,0.34726852]
[1754354809894,3.32348044,114980.0,114970.0,0.42542393]
[1754354811393,3.32348044,114980.0,114970.0,0.32175393]
[1754354811594,3.32348044,114980.0,114970.0,0.26673852]
[1754354811795,3.32348044,114980.0,114970.0,0.34489393]
[1754354812396,3.32348044,114980.0,114970.0,0.26673852]
[1754354813495,3.32348044,114980.0,114970.0,0.34489393]
[1754354813691,3.32348044,114980.0,114970.0,0.26673852]
[1754354813886,3.80929946,114980.0,114970.0,0.24359852]
[1754354814293,3.32348044,114980.0,114970.0,0.24359852]
[1754354816296,2.72856044,114980.0,114970.0,0.24359852]
[1754354816498,2.72856044,114980.0,114970.0,0.26673852]
[1754354816699,3.32348044,114980.0,114970.0,0.26673852]
[1754354816898,3.32348044,114980.0,114970.0,0.28323852]
[1754354817099,3.32348044,114980.0,114970.0,0.31420852]
[1754354817296,3.32348044,114980.0,114970.0,0.36191852]
[1754354817500,3.32348044,114980.0,114970.0,0.34726852]
[1754354817904,3.14953804,114980.0,114970.0,0.34726852]
[1754354818108,3.32348044,114980.0,114970.0,0.36191852]
[1754354818604,3.32348044,114980.0,114970.0,0.26673852]
[1754354819000,2.72856044,114980.0,114970.0,0.26673852]
[1754354819397,3.32348044,114980.0,114970.0,0.26673852]
[1754354821916,3.32348044,114980.0,114970.0,0.34489393]
[1754354823417,3.32348044,114980.0,114970.0,0.32175393]
[1754354823918,3.32348044,114980.0,114970.0,0.24359852]
[1754354824922,3.32348044,114980.0,114970.0,0.26781852]
[1754354825116,3.32348044,114980.0,114970.0,0.34597393]
[1754354826620,2.3518424,114980.0,114970.0,0.34597393]
[1754354826817,3.32348044,114980.0,114970.0,0.34597393]
[1754354829423,3.32348044,114980.0,114970.0,0.26781852]
[1754354830717,3.32348044,114980.0,114970.0,0.34597393]
[1754354832025,3.32348044,114980.0,114970.0,0.26781852]
[1754354837631,2.3518424,114980.0,114970.0,0.28446852]
[1754354837825,3.32348044,114980.0,114970.0,0.34763852]
[1754354838128,3.30848044,114980.0,114970.0,0.28446852]
[1754354838425,3.30848044,114980.0,114970.0,0.36248852]
[1754354838426,3.32348044,114980.0,114970.0,0.36248852]
[1754354838624,2.64871902,114980.0,114970.0,0.84830754]
[1754354838831,2.05379902,114980.0,114970.0,0.84830754]
[1754354839928,2.53961804,114980.0,114970.0,0.84830754]
[1754354841031,2.05379902,114980.0,114970.0,0.84830754]
[1754354842237,1.56798,114980.0,114970.0,0.84830754]
[1754354842534,2.22774112,114980.0,114970.0,0.84830754]
[1754354843236,2.22774112,114980.0,114970.0,0.36248852]
[1754354843835,2.22774112,114980.0,114970.0,0.84830754]
[1754354844435,1.86694112,114980.0,114970.0,0.84830754]
[1754354844741,2.35276014,114980.0,114970.0,0.84830754]
[1754354845240,2.17881804,114980.0,114970.0,0.84830754]
[1754354845542,2.35276034,114980.0,114970.0,0.84830754]
[1754354845740,1.86694132,114980.0,114970.0,0.84830754]
[1754354846039,1.20808,114980.0,114970.0,0.36248852]
[1754354846237,1.20808,114980.0,114970.0,0.84830754]
[1754354846238,1.62998902,114980.0,114970.0,0.84830754]
[1754354846435,1.12998902,114980.0,114970.0,0.84830754]
[1754354846936,1.17758902,114980.0,114970.0,0.84830754]
[1754354847141,1.17758902,114980.0,114970.0,0.95787247]
[1754354847343,1.17758902,114980.0,114970.0,0.84830754]
[1754354847539,1.17758902,114980.0,114970.0,0.36248852]
[1754354847738,0.70803,114980.0,114970.0,0.44075134]
[1754354847939,1.19384902,114980.0,114970.0,0.92657036]
[1754354848840,1.19284902,114980.0,114970.0,0.92657036]
[1754354849145,0.71003,114980.0,114970.0,0.92757036]
[1754354849339,1.19584902,114980.0,114970.0,0.92757036]
[1754354849543,0.71003,114980.0,114970.0,0.92757036]
[1754354849743,0.66443,114980.0,114970.0,0.92657036]
[1754354849943,0.71203,114980.0,114970.0,0.92657036]
[1754354850548,0.62515,114980.0,114970.0,0.84830754]
[1754354851245,0.69385,114980.0,114970.0,0.84830754]
[1754354851441,0.71011,114980.0,114970.0,0.84830754]
[1754354852646,0.64625,114980.0,114970.0,0.84830754]
[1754354853246,0.68037,114980.0,114970.0,0.84830754]
[1754354853449,0.71057,114980.0,114970.0,0.84830754]
[1754354854238,0.2549,114980.0,114970.0,2.57328349]
[1754354855050,0.1835161,114980.0,114970.0,2.57328349]
[1754354855255,0.1100877,114980.0,114970.0,2.57328349]
[1754354855547,0.1080877,114980.0,114970.0,2.46371856]
[1754354855952,0.1080877,114980.0,114970.0,2.57315667]
[1754354856248,0.1070877,114980.0,114970.0,2.57315667]
[1754354861245,0.1070877,114980.0,114970.0,1.97831667]
[1754354861540,0.1070877,114980.0,114970.0,2.57311667]
[1754354864163,0.1070877,114980.0,114970.0,2.83791667]
[1754354865258,0.1070877,114980.0,114970.0,2.72847856]
[1754354866762,0.1070877,114980.0,114970.0,2.13367856]
[1754354867056,0.1070877,114980.0,114970.0,2.72843856]
[1754354867353,0.1070877,114980.0,114970.0,2.13367856]
[1754354867554,0.1070877,114980.0,114970.0,2.72843856]
[1754354868258,0.1070877,114980.0,114970.0,1.88222543]
[1754354868455,0.1070877,114980.0,114970.0,2.83778543]
[1754354868655,0.1070877,114980.0,114970.0,2.72843856]
[1754354868962,0.1070877,114980.0,114970.0,2.83779746]
[1754354869251,0.1070877,114980.0,114970.0,2.83775746]
[1754354869457,0.1070877,114980.0,114970.0,2.36759856]
[1754354869657,0.1070877,114980.0,114970.0,2.72839856]
[1754354870658,0.1070877,114980.0,114970.0,2.55444656]
[1754354870854,0.1070877,114980.0,114970.0,2.72839856]
[1754354871959,0.1070877,114980.0,114970.0,2.83778366]
[1754354872757,0.1070877,114980.0,114970.0,2.55444656]
[1754354873156,0.0803762,114980.0,114970.0,2.55444656]
[1754354873363,0.42761,115000.0,114990.0,0.2526176]
[1754354873556,0.37079,115000.0,114990.0,1.45230536]
[1754354874059,0.42761,115000.0,114990.0,1.45230536]
[1754354874265,0.44253,115000.0,114990.0,1.45230536]
[1754354875155,0.44253,115000.0,114990.0,1.45330536]
[1754354875361,0.37079,115000.0,114990.0,1.45330536]
[1754354875555,0.39349,115000.0,114990.0,1.45330536]
[1754354875760,0.44253,115000.0,114990.0,1.45330536]
[1754354875960,0.44253,115000.0,114990.0,1.71810536]
[1754354878458,0.3608,115000.0,114990.0,1.71810536]